Workbook

Sheet Tabelle1
A1: x Element Bild(X) | B1: fX(x) | C1: x*fX(x) | D1: fX(x)*(x-E(X))^2
A2: 1 | B2: =1/8 -> 0.125 | C2: =A2*B2 -> 0.125 | D2: =B2*(A2-$B$6)^2 -> 0.6328125 | E2: =B2*(A2-$B$6)^2
A3: 3 | B3: =3/8 -> 0.375 | C3: =A3*B3 -> 1.125 | D3: =B3*(A3-$B$6)^2 -> 0.0234375
A4: 4 | B4: =1/2 -> 0.5 | C4: 2 | D4: 0.28125
B5: Summe | C5: =SUM(C2:C4) -> 3.25 | D5: =SUM(D2:D4) -> 0.9375
A6: E(X) | B6: =MMULT(TRANSPOSE(A2:A4),B2:B4) -> 3.25 | C6: =MMULT(MTRANS(A2:A4);B2:B4)
A7: V(X) | B7: =MMULT(TRANSPOSE(B2:B4),(A2:A4-$B$6)^2) -> 0.9375 | C7: =MMULT(MTRANS(B2:B4);(A2:A4-$B$6)^2)

Sheet Tabelle2
B1: Investition 1 | D1: Investition 2
A2: Wahrscheinlichkeit | B2: Gewinn in % | C2: Wahrscheinlichkeit | D2: Gewinn in %
A3: 0.05 | B3: -3 | C3: 0.05 | D3: -20
A4: 0.04 | B4: -1 | C4: 0.04 | D4: -14.5
A5: 0.32 | B5: 0 | C5: 0.32 | D5: 0
A6: 0.4 | B6: 5 | C6: 0.4 | D6: 8
A7: 0.19 | B7: 16 | C7: 0.19 | D7: 17
A8: E(X) | B8: =MMULT(TRANSPOSE(A3:A7),B3:B7) -> 4.85 | D8: =MMULT(TRANSPOSE(C3:C7),D3:D7) -> 4.85 | E8: =MMULT(MTRANS(C3:C7);D3:D7)
A9: V(X) | B9: =MMULT(TRANSPOSE(A3:A7),(B3:B7-B8)^2) -> 35.6075 | D9: =MMULT(TRANSPOSE(C3:C7),(D3:D7-D8)^2) -> 85.3975 | E9: =MMULT(MTRANS(C3:C7);(D3:D7-D8)^2)
D11: fx1
B12: =1/6 -> 0.1666666667 | C12: =1/2 -> 0.5 | D12: =SUM(B12:C12) -> 0.6666666667
B13: =1/8 -> 0.125 | C13: =5/24 -> 0.2083333333 | D13: =SUM(B13:C13) -> 0.3333333333
A14: fx2 | B14: =SUM(B12:B13) -> 0.2916666667 | C14: =SUM(C12:C13) -> 0.7083333333 | D14: =SUM(D12:D13) -> 1

Sheet Statistik_Summe_Beispiel
A1: Omega = {K,Z}
A2: f(K)=1/3 | D2: Xi(K)=10; Xi(Z)=1
A3: f(Z)= 2/3 | D3: fX(1)= 2/3; fX(10)=1/39 | G3: Bild(Xi) = {1,10} | I3: =PRODUKT(E6:H6)
A4: Kartes. Produkt der Bilder von (Xi) | G4: =WENN(A6=1;2/3;1/3) | I4: =SUM(I6:I21) -> 1 | J4: =SUMME(A6:D6) | L4: =SUMME(WENN($J$6:$J$21=K6;$I$6:$I$21;0))
A5: X1 | B5: X2 | C5: X3 | D5: X4 | E5: Hilfsspalten fuer Berechnung Produkte-W-Funktion | I5: Werte der Produkte-W-Funktion | J5: Werte der Statistik Summe | K5: red. Bild der Stastistik Summe | L5: W-Funktion der Statistik Summe
A6: 1 | B6: 1 | C6: 1 | D6: 1 | E6: =IF(A6=1,2/3,1/3) -> 0.6666666667 | F6: =IF(B6=1,2/3,1/3) -> 0.6666666667 | G6: 0.6666666667 | H6: 0.6666666667 | I6: =PRODUCT(E6:H6) -> 0.1975308642 | J6: =SUM(A6:D6) -> 4 | K6: 4 | L6: =SUM(IF($J$6:$J$21=K6,$I$6:$I$21,0)) -> 0.1975308642
A7: 1 | B7: 1 | C7: 1 | D7: 10 | E7: =IF(A7=1,2/3,1/3) -> 0.6666666667 | F7: =IF(B7=1,2/3,1/3) -> 0.6666666667 | G7: =IF(C7=1,2/3,1/3) -> 0.6666666667 | H7: =IF(D7=1,2/3,1/3) -> 0.3333333333 | I7: =PRODUCT(E7:H7) -> 0.0987654321 | J7: =SUM(A7:D7) -> 13 | K7: 13 | L7: =SUM(IF($J$6:$J$21=K7,$I$6:$I$21,0)) -> 0.3950617284
A8: 1 | B8: 1 | C8: 10 | D8: 1 | E8: 0.6666666667 | F8: 0.6666666667 | G8: 0.3333333333 | H8: 0.6666666667 | I8: 0.0987654321 | J8: 13 | K8: 22 | L8: =SUM(IF($J$6:$J$21=K8,$I$6:$I$21,0)) -> 0.2962962963
A9: 1 | B9: 1 | C9: 10 | D9: 10 | E9: 0.6666666667 | F9: 0.6666666667 | G9: 0.3333333333 | H9: 0.3333333333 | I9: 0.04938271605 | J9: 22 | K9: 31 | L9: =SUM(IF($J$6:$J$21=K9,$I$6:$I$21,0)) -> 0.0987654321
A10: 1 | B10: 10 | C10: 1 | D10: 1 | E10: 0.6666666667 | F10: 0.3333333333 | G10: 0.6666666667 | H10: 0.6666666667 | I10: 0.0987654321 | J10: 13 | K10: 40 | L10: =SUM(IF($J$6:$J$21=K10,$I$6:$I$21,0)) -> 0.01234567901
A11: 1 | B11: 10 | C11: 1 | D11: 10 | E11: 0.6666666667 | F11: 0.3333333333 | G11: 0.6666666667 | H11: 0.3333333333 | I11: 0.04938271605 | J11: 22 | K11: Summe | L11: =SUM(L6:L10) -> 1
A12: 1 | B12: 10 | C12: 10 | D12: 1 | E12: 0.6666666667 | F12: 0.3333333333 | G12: 0.3333333333 | H12: 0.6666666667 | I12: 0.04938271605 | J12: 22
A13: 1 | B13: 10 | C13: 10 | D13: 10 | E13: 0.6666666667 | F13: 0.3333333333 | G13: 0.3333333333 | H13: 0.3333333333 | I13: 0.02469135802 | J13: 31
A14: 10 | B14: 1 | C14: 1 | D14: 1 | E14: 0.3333333333 | F14: 0.6666666667 | G14: 0.6666666667 | H14: 0.6666666667 | I14: 0.0987654321 | J14: 13
A15: 10 | B15: 1 | C15: 1 | D15: 10 | E15: 0.3333333333 | F15: 0.6666666667 | G15: 0.6666666667 | H15: 0.3333333333 | I15: 0.04938271605 | J15: 22
A16: 10 | B16: 1 | C16: 10 | D16: 1 | E16: 0.3333333333 | F16: 0.6666666667 | G16: 0.3333333333 | H16: 0.6666666667 | I16: 0.04938271605 | J16: 22
A17: 10 | B17: 1 | C17: 10 | D17: 10 | E17: 0.3333333333 | F17: 0.6666666667 | G17: 0.3333333333 | H17: 0.3333333333 | I17: 0.02469135802 | J17: 31
A18: 10 | B18: 10 | C18: 1 | D18: 1 | E18: 0.3333333333 | F18: 0.3333333333 | G18: 0.6666666667 | H18: 0.6666666667 | I18: 0.04938271605 | J18: 22
A19: 10 | B19: 10 | C19: 1 | D19: 10 | E19: 0.3333333333 | F19: 0.3333333333 | G19: 0.6666666667 | H19: 0.3333333333 | I19: 0.02469135802 | J19: 31
A20: 10 | B20: 10 | C20: 10 | D20: 1 | E20: 0.3333333333 | F20: 0.3333333333 | G20: 0.3333333333 | H20: 0.6666666667 | I20: 0.02469135802 | J20: 31
A21: 10 | B21: 10 | C21: 10 | D21: 10 | E21: 0.3333333333 | F21: 0.3333333333 | G21: 0.3333333333 | H21: 0.3333333333 | I21: 0.01234567901 | J21: 40
